[Event "Live Chess"]
[Site "Chess.com"]
[Date "2024.06.02"]
[Round "-"]
[White "raclement"]
[Black "toog"]
[Result "0-1"]
[WhiteElo "1729"]
[BlackElo "2600"]
[TimeControl "300"]
[EndTime "16:07:12 PDT"]
[Termination "toog won by resignation"]

1. Nf3 {[%clk 0:04:53.3]} 1... Nf6 {[%clk 0:04:58]} 2. g3 {[%clk 0:04:51.8]}
2... c5 {[%clk 0:04:56.3]} 3. Bg2 {[%clk 0:04:49.6]} 3... Nc6 {[%clk 0:04:55.8]}
4. O-O {[%clk 0:04:46.1]} 4... e5 {[%clk 0:04:55.3]} 5. c4 {[%clk 0:04:43.2]}
5... Be7 {[%clk 0:04:48.5]} 6. Nc3 {[%clk 0:04:41.4]} 6... d6 {[%clk 0:04:48]}
7. d3 {[%clk 0:04:35.3]} 7... O-O {[%clk 0:04:47]} 8. a3 {[%clk 0:04:21.2]} 8...
h6 {[%clk 0:04:44.1]} 9. Rb1 {[%clk 0:04:19.8]} 9... a5 {[%clk 0:04:41.3]} 10.
b3 {[%clk 0:04:16.5]} 10... Be6 {[%clk 0:04:39.5]} 11. h3 {[%clk 0:04:06.6]}
11... Qd7 {[%clk 0:04:37.9]} 12. Kh2 {[%clk 0:04:03.8]} 12... Nd4 {[%clk
0:04:23.8]} 13. Nxd4 {[%clk 0:03:57.8]} 13... exd4 {[%clk 0:04:23.7]} 14. Nb5
{[%clk 0:03:56]} 14... d5 {[%clk 0:04:19.9]} 15. e3 {[%clk 0:03:41.4]} 15...
dxe3 {[%clk 0:04:15.7]} 16. Bxe3 {[%clk 0:03:38.8]} 16... Rfd8 {[%clk
0:04:15.1]} 17. Qc2 {[%clk 0:03:34]} 17... Bf5 {[%clk 0:04:09.6]} 18. g4 {[%clk
0:03:10.1]} 18... Bg6 {[%clk 0:04:07.6]} 19. Bf4 {[%clk 0:03:05.5]} 19... dxc4
{[%clk 0:04:04.7]} 20. Qxc4 {[%clk 0:02:59.4]} 20... Bxd3 {[%clk 0:04:02.7]} 21.
Rfd1 {[%clk 0:02:55.8]} 21... Bxc4 {[%clk 0:03:48.8]} 22. Rxd7 {[%clk
0:02:53.7]} 22... Rxd7 {[%clk 0:03:43.8]} 23. bxc4 {[%clk 0:02:51.2]} 23... Re8
{[%clk 0:03:38.6]} 24. Nc3 {[%clk 0:02:48.5]} 24... Bd6 {[%clk 0:03:36]} 25.
Bxd6 {[%clk 0:02:43.7]} 25... Rxd6 {[%clk 0:03:35.9]} 26. Nd5 {[%clk 0:02:35.3]}
26... Nxd5 {[%clk 0:03:34.6]} 27. Bxd5 {[%clk 0:02:32.4]} 27... b6 {[%clk
0:03:34]} 28. Rb3 {[%clk 0:02:26.8]} 28... g6 {[%clk 0:03:31]} 29. Kg3 {[%clk
0:02:24.7]} 29... Kg7 {[%clk 0:03:30.1]} 30. f3 {[%clk 0:02:23.3]} 30... Re5
{[%clk 0:03:26.6]} 31. f4 {[%clk 0:02:16.4]} 31... Re1 {[%clk 0:03:21.8]} 32.
Kf3 {[%clk 0:02:09.5]} 32... Rd1 {[%clk 0:03:19.5]} 33. Re3 {[%clk 0:02:06.5]}
33... R1xd5 {[%clk 0:03:17.1]} 34. cxd5 {[%clk 0:02:03.7]} 34... Rxd5 {[%clk
0:03:17]} 35. Rb3 {[%clk 0:01:59.5]} 35... Rd6 {[%clk 0:03:16]} 36. a4 {[%clk
0:01:56.1]} 36... Kf6 {[%clk 0:03:14.2]} 37. h4 {[%clk 0:01:53.2]} 37... Ke6
{[%clk 0:03:13.1]} 38. Re3+ {[%clk 0:01:51]} 38... Kd7 {[%clk 0:03:10.5]} 39. f5
{[%clk 0:01:46.2]} 39... gxf5 {[%clk 0:02:52.3]} 40. g5 {[%clk 0:01:41.6]} 40...
hxg5 {[%clk 0:02:50.8]} 41. hxg5 {[%clk 0:01:39.7]} 41... Rd4 {[%clk 0:02:50.2]}
42. Re5 {[%clk 0:01:35.2]} 42... Rxa4 {[%clk 0:02:47.3]} 43. Rxf5 {[%clk
0:01:34]} 43... Ke7 {[%clk 0:02:46.8]} 44. Rf6 {[%clk 0:01:32]} 44... Rb4 {[%clk
0:02:46.1]} 0-1

[Event "Live Chess"]
[Site "Chess.com"]
[Date "2024.06.02"]
[Round "-"]
[White "wadsy27"]
[Black "dmitro74"]
[Result "1-0"]
[WhiteElo "2569"]
[BlackElo "1648"]
[TimeControl "300"]
[EndTime "16:07:19 PDT"]
[Termination "wadsy27 won by checkmate"]

1. c4 {[%clk 0:04:58.2]} 1... e5 {[%clk 0:04:58.4]} 2. g3 {[%clk 0:04:57.6]}
2... f5 {[%clk 0:04:56.5]} 3. d4 {[%clk 0:04:56.1]} 3... e4 {[%clk 0:04:55]} 4.
Nc3 {[%clk 0:04:54.9]} 4... Nf6 {[%clk 0:04:53.6]} 5. Bg2 {[%clk 0:04:53]} 5...
c6 {[%clk 0:04:52.4]} 6. Nh3 {[%clk 0:04:51.6]} 6... d5 {[%clk 0:04:49.2]} 7.
cxd5 {[%clk 0:04:51.5]} 7... cxd5 {[%clk 0:04:47.9]} 8. Bg5 {[%clk 0:04:51]}
8... Be7 {[%clk 0:04:41.8]} 9. Nf4 {[%clk 0:04:49.1]} 9... O-O {[%clk
0:04:33.4]} 10. Bxf6 {[%clk 0:04:48.1]} 10... Bxf6 {[%clk 0:04:31.9]} 11. Ncxd5
{[%clk 0:04:47.3]} 11... g5 {[%clk 0:04:24.4]} 12. Nxf6+ {[%clk 0:04:45.1]}
12... Rxf6 {[%clk 0:04:19.2]} 13. Nh3 {[%clk 0:04:37.9]} 13... Rb6 {[%clk
0:04:13.8]} 14. O-O {[%clk 0:04:33.8]} 14... Be6 {[%clk 0:04:01.8]} 15. e3
{[%clk 0:04:30.9]} 15... Rxb2 {[%clk 0:03:59.5]} 16. Qh5 {[%clk 0:04:29.6]}
16... Bf7 {[%clk 0:03:41.5]} 17. Qxg5+ {[%clk 0:04:28.4]} 17... Qxg5 {[%clk
0:03:40.2]} 18. Nxg5 {[%clk 0:04:28.3]} 18... Bxa2 {[%clk 0:03:35.4]} 19. Rfc1
{[%clk 0:04:00.8]} 19... Na6 {[%clk 0:03:20.9]} 20. g4 {[%clk 0:03:45.3]} 20...
h6 {[%clk 0:03:08.6]} 21. gxf5 {[%clk 0:03:40.3]} 21... hxg5 {[%clk 0:03:06.6]}
22. Bxe4 {[%clk 0:03:39.9]} 22... Nb4 {[%clk 0:02:21.1]} 23. Bxb7 {[%clk
0:03:28.6]} 23... Rf8 {[%clk 0:02:14.1]} 24. Bc8 {[%clk 0:03:20.1]} 24... Nd3
{[%clk 0:02:07.4]} 25. Rc7 {[%clk 0:03:12.7]} 25... Nxf2 {[%clk 0:02:01.1]} 26.
Rxa2 {[%clk 0:03:11.8]} 26... Rxa2 {[%clk 0:01:56.3]} 27. Be6+ {[%clk
0:03:09.8]} 27... Kh8 {[%clk 0:01:52.9]} 28. Bxa2 {[%clk 0:03:08.7]} 28... Ng4
{[%clk 0:01:50]} 29. e4 {[%clk 0:03:05.3]} 29... Re8 {[%clk 0:01:41.9]} 30. e5
{[%clk 0:03:04]} 30... Rd8 {[%clk 0:01:37.1]} 31. f6 {[%clk 0:02:57.3]} 31...
Rxd4 {[%clk 0:01:34.9]} 32. Rc8+ {[%clk 0:02:56.4]} 32... Kh7 {[%clk 0:01:31.3]}
33. Bb1+ {[%clk 0:02:55.8]} 33... Kh6 {[%clk 0:01:24.5]} 34. Rh8# {[%clk
0:02:54.5]} 1-0

[Event "Live Chess"]
[Site "Chess.com"]
[Date "2024.06.02"]
[Round "-"]
[White "jimwad"]
[Black "Rusty_Bridges"]
[Result "1-0"]
[WhiteElo "1318"]
[BlackElo "1482"]
[TimeControl "300"]
[EndTime "16:07:31 PDT"]
[Termination "jimwad won by resignation"]

1. d4 {[%clk 0:04:57.9]} 1... d5 {[%clk 0:04:56.2]} 2. c4 {[%clk 0:04:56.9]}
2... e6 {[%clk 0:04:54.5]} 3. Nc3 {[%clk 0:04:55.6]} 3... Nf6 {[%clk 0:04:52]}
4. Bg5 {[%clk 0:04:54.9]} 4... Be7 {[%clk 0:04:50.5]} 5. Nf3 {[%clk 0:04:53]}
5... c6 {[%clk 0:04:47.6]} 6. c5 {[%clk 0:04:51.2]} 6... b6 {[%clk 0:04:45.2]}
7. b4 {[%clk 0:04:49.2]} 7... Nbd7 {[%clk 0:04:41]} 8. e3 {[%clk 0:04:47.3]}
8... b5 {[%clk 0:04:37.6]} 9. Be2 {[%clk 0:04:44.1]} 9... a5 {[%clk 0:04:35.5]}
10. a3 {[%clk 0:04:41.4]} 10... Ne4 {[%clk 0:04:24.7]} 11. Bxe7 {[%clk 0:04:36]}
11... Qxe7 {[%clk 0:04:18.1]} 12. Nxe4 {[%clk 0:04:34]} 12... dxe4 {[%clk
0:04:17.1]} 13. Nd2 {[%clk 0:04:32.9]} 13... f5 {[%clk 0:04:15.2]} 14. O-O
{[%clk 0:04:30.8]} 14... Nf6 {[%clk 0:04:12.1]} 15. Qb3 {[%clk 0:04:09.8]} 15...
Nd5 {[%clk 0:04:07]} 16. f3 {[%clk 0:03:54.1]} 16... a4 {[%clk 0:04:05.2]} 17.
Qb2 {[%clk 0:03:37.7]} 17... Nxe3 {[%clk 0:04:00.3]} 18. Rf2 {[%clk 0:03:36]}
18... exf3 {[%clk 0:03:37.9]} 19. Bxf3 {[%clk 0:03:33.5]} 19... Nd5 {[%clk
0:03:31.9]} 20. Re2 {[%clk 0:03:27.2]} 20... O-O {[%clk 0:03:28.4]} 21. Rae1
{[%clk 0:03:24.2]} 21... Qf6 {[%clk 0:02:47.9]} 22. Re5 {[%clk 0:03:19]} 22...
Bd7 {[%clk 0:02:36]} 23. Nf1 {[%clk 0:03:16.4]} 23... g5 {[%clk 0:02:26.3]} 24.
Bxd5 {[%clk 0:03:00.3]} 24... cxd5 {[%clk 0:02:17.3]} 25. Qc2 {[%clk 0:02:53.7]}
25... Rac8 {[%clk 0:02:13.4]} 26. Ng3 {[%clk 0:02:45.1]} 26... Qg6 {[%clk
0:02:02.9]} 27. Qe2 {[%clk 0:02:38.6]} 27... f4 {[%clk 0:01:46.2]} 28. Nf1
{[%clk 0:02:14.4]} 28... h5 {[%clk 0:01:42.3]} 29. h3 {[%clk 0:02:05.6]} 29...
Kh7 {[%clk 0:01:38.8]} 30. Nd2 {[%clk 0:02:00.3]} 30... Kh6 {[%clk 0:01:31.5]}
31. Nf3 {[%clk 0:01:57.1]} 31... Rf5 {[%clk 0:01:21.5]} 32. Kh2 {[%clk 0:01:42]}
32... g4 {[%clk 0:01:14.2]} 33. Nh4 {[%clk 0:01:38.8]} 1-0

[Event "Live Chess"]
[Site "Chess.com"]
[Date "2024.06.02"]
[Round "-"]
[White "IgorSchukin"]
[Black "lyricalschemes"]
[Result "1-0"]
[WhiteElo "1733"]
[BlackElo "2271"]
[TimeControl "300"]
[EndTime "16:07:53 PDT"]
[Termination "IgorSchukin won by resignation"]

1. e4 {[%clk 0:04:57.7]} 1... Nf6 {[%clk 0:04:45.6]} 2. Nc3 {[%clk 0:04:56.1]}
2... e5 {[%clk 0:04:43.2]} 3. Nf3 {[%clk 0:04:54.8]} 3... Nc6 {[%clk 0:04:28.5]}
4. d4 {[%clk 0:04:53.2]} 4... exd4 {[%clk 0:04:13.9]} 5. Nxd4 {[%clk 0:04:51.9]}
5... Nxe4 {[%clk 0:04:10.7]} 6. Nxe4 {[%clk 0:04:50]} 6... Qe7 {[%clk
0:03:55.2]} 7. f3 {[%clk 0:04:46.8]} 7... d5 {[%clk 0:03:53.6]} 8. Bb5 {[%clk
0:04:44.4]} 8... Bd7 {[%clk 0:03:50.4]} 9. Bxc6 {[%clk 0:04:43.1]} 9... bxc6
{[%clk 0:03:42]} 10. O-O {[%clk 0:04:41.5]} 10... dxe4 {[%clk 0:03:40.2]} 11.
Re1 {[%clk 0:04:40]} 11... O-O-O {[%clk 0:03:37.1]} 12. Rxe4 {[%clk 0:04:35.8]}
12... Qc5 {[%clk 0:03:29.9]} 13. Be3 {[%clk 0:04:33.8]} 13... Qa5 {[%clk
0:03:14.6]} 14. c3 {[%clk 0:04:23.9]} 14... Bc5 {[%clk 0:03:09.2]} 15. b4 {[%clk
0:04:21.2]} 1-0

[Event "Live Chess"]
[Site "Chess.com"]
[Date "2024.06.02"]
[Round "-"]
[White "Outspanner"]
[Black "TigerTank70"]
[Result "0-1"]
[WhiteElo "1529"]
[BlackElo "2238"]
[TimeControl "300"]
[EndTime "16:07:56 PDT"]
[Termination "TigerTank70 won on time"]

1. Nf3 {[%clk 0:04:55.5]} 1... d6 {[%clk 0:04:58.7]} 2. d4 {[%clk 0:04:46.9]}
2... Nf6 {[%clk 0:04:56.2]} 3. c4 {[%clk 0:04:40.8]} 3... e6 {[%clk 0:04:49]} 4.
Nc3 {[%clk 0:04:39.4]} 4... Be7 {[%clk 0:04:39.8]} 5. g4 {[%clk 0:04:26]} 5...
Nc6 {[%clk 0:04:35.2]} 6. g5 {[%clk 0:04:23.8]} 6... Nd7 {[%clk 0:04:29.9]} 7.
h4 {[%clk 0:04:22.5]} 7... e5 {[%clk 0:04:24.8]} 8. d5 {[%clk 0:04:18.9]} 8...
Ncb8 {[%clk 0:04:22.7]} 9. e4 {[%clk 0:04:16.7]} 9... c6 {[%clk 0:04:20.2]} 10.
Be3 {[%clk 0:03:36.7]} 10... Nb6 {[%clk 0:04:16.7]} 11. Be2 {[%clk 0:03:27.8]}
11... Bg4 {[%clk 0:04:09.1]} 12. c5 {[%clk 0:02:56.5]} 12... dxc5 {[%clk
0:03:58.8]} 13. dxc6 {[%clk 0:02:54]} 13... Nxc6 {[%clk 0:03:54.6]} 14. Nd2
{[%clk 0:02:08.4]} 14... Bxe2 {[%clk 0:03:51]} 15. Qxe2 {[%clk 0:02:05.6]} 15...
Nd4 {[%clk 0:03:50.2]} 16. Bxd4 {[%clk 0:02:04]} 16... cxd4 {[%clk 0:03:42.9]}
17. Qb5+ {[%clk 0:02:00.2]} 17... Qd7 {[%clk 0:03:40.9]} 18. Qxd7+ {[%clk
0:01:44.5]} 18... Nxd7 {[%clk 0:03:40.8]} 19. Nd5 {[%clk 0:01:43.4]} 19... Rc8
{[%clk 0:03:32.3]} 20. f4 {[%clk 0:01:09.2]} 20... Bd6 {[%clk 0:03:26.8]} 21. f5
{[%clk 0:01:06.5]} 21... Rc2 {[%clk 0:03:20.5]} 22. f6 {[%clk 0:00:43.7]} 22...
gxf6 {[%clk 0:03:13.2]} 23. gxf6 {[%clk 0:00:37.9]} 23... Nb6 {[%clk 0:03:11.4]}
24. Nxb6 {[%clk 0:00:28]} 24... axb6 {[%clk 0:03:11.3]} 25. Rb1 {[%clk
0:00:17.6]} 25... Bb4 {[%clk 0:03:09.5]} 26. Rh2 {[%clk 0:00:15.5]} 26... Rg8
{[%clk 0:03:08.4]} 27. a3 {[%clk 0:00:14.3]} 27... Bxd2+ {[%clk 0:03:03.7]} 28.
Rxd2 {[%clk 0:00:12.1]} 28... Rg1+ {[%clk 0:03:02.7]} 29. Ke2 {[%clk 0:00:08.9]}
29... Rxd2+ {[%clk 0:03:01.1]} 30. Kxd2 {[%clk 0:00:08.2]} 30... Rxb1 {[%clk
0:03:00.6]} 0-1

[Event "Live Chess"]
[Site "Chess.com"]
[Date "2024.06.02"]
[Round "-"]
[White "GEMdzq"]
[Black "oscalik"]
[Result "1-0"]
[WhiteElo "2299"]
[BlackElo "2285"]
[TimeControl "300"]
[EndTime "16:07:59 PDT"]
[Termination "GEMdzq won on time"]

1. e4 {[%clk 0:04:58.1]} 1... c5 {[%clk 0:04:56.8]} 2. d4 {[%clk 0:04:57]} 2...
cxd4 {[%clk 0:04:55.1]} 3. c3 {[%clk 0:04:56.7]} 3... dxc3 {[%clk 0:04:54.5]} 4.
Nxc3 {[%clk 0:04:56.6]} 4... Nc6 {[%clk 0:04:52.4]} 5. Bc4 {[%clk 0:04:56]} 5...
e6 {[%clk 0:04:50.8]} 6. Nf3 {[%clk 0:04:55.5]} 6... a6 {[%clk 0:04:42.9]} 7.
O-O {[%clk 0:04:53.7]} 7... b5 {[%clk 0:04:41.8]} 8. Bb3 {[%clk 0:04:52.2]} 8...
Na5 {[%clk 0:04:40.7]} 9. Bf4 {[%clk 0:04:42.2]} 9... Nxb3 {[%clk 0:04:26.3]}
10. axb3 {[%clk 0:04:42.1]} 10... Bb7 {[%clk 0:04:24.3]} 11. Re1 {[%clk
0:04:40.7]} 11... Bc5 {[%clk 0:04:11.6]} 12. Rc1 {[%clk 0:04:29.5]} 12... Rc8
{[%clk 0:03:57.9]} 13. Nd5 {[%clk 0:04:03.2]} 13... d6 {[%clk 0:02:55.2]} 14. b4
{[%clk 0:03:55.8]} 14... Bxd5 {[%clk 0:02:33.6]} 15. bxc5 {[%clk 0:03:45.7]}
15... Bc6 {[%clk 0:02:14.6]} 16. Bxd6 {[%clk 0:03:39.9]} 16... Ne7 {[%clk
0:02:10.5]} 17. Ne5 {[%clk 0:03:35.2]} 17... O-O {[%clk 0:02:04.4]} 18. Qg4
{[%clk 0:03:31.1]} 18... Re8 {[%clk 0:01:42.4]} 19. h4 {[%clk 0:03:29.9]} 19...
Ng6 {[%clk 0:01:37.6]} 20. h5 {[%clk 0:03:25.8]} 20... Nxe5 {[%clk 0:01:27.3]}
21. Bxe5 {[%clk 0:03:25.7]} 21... f6 {[%clk 0:01:25.6]} 22. Bd6 {[%clk
0:03:24.9]} 22... Qd7 {[%clk 0:00:54.1]} 23. Rc3 {[%clk 0:03:13.3]} 23... e5
{[%clk 0:00:52.3]} 24. Qh4 {[%clk 0:03:09.2]} 24... Re6 {[%clk 0:00:30.7]} 25.
Rg3 {[%clk 0:03:06]} 25... Rxd6 {[%clk 0:00:27.3]} 26. cxd6 {[%clk 0:03:03.9]}
26... Qxd6 {[%clk 0:00:26.7]} 27. Rxg7+ {[%clk 0:02:56]} 27... Kxg7 {[%clk
0:00:24.7]} 28. Qg4+ {[%clk 0:02:55.3]} 28... Kf7 {[%clk 0:00:22]} 29. Qxc8
{[%clk 0:02:54.3]} 29... Qd2 {[%clk 0:00:14.2]} 30. Rf1 {[%clk 0:02:37.1]} 30...
Bxe4 {[%clk 0:00:13]} 31. Qc7+ {[%clk 0:02:35.4]} 31... Ke6 {[%clk 0:00:11.2]}
32. Qc8+ {[%clk 0:02:31.2]} 32... Ke7 {[%clk 0:00:09.2]} 33. Qc3 {[%clk
0:02:27.5]} 33... Qg5 {[%clk 0:00:07.1]} 34. Qc5+ {[%clk 0:02:24.8]} 34... Kf7
{[%clk 0:00:05.4]} 35. Qa7+ {[%clk 0:02:21.9]} 35... Ke6 {[%clk 0:00:02.8]} 36.
Qxa6+ {[%clk 0:02:20.4]} 36... Kf5 {[%clk 0:00:02.7]} 37. Qc8+ {[%clk
0:02:19.3]} 37... Kf4 {[%clk 0:00:01.7]} 38. g3+ {[%clk 0:02:12]} 1-0

[Event "Live Chess"]
[Site "Chess.com"]
[Date "2024.06.02"]
[Round "-"]
[White "stevochess11"]
[Black "ShanthamGrarks"]
[Result "1-0"]
[WhiteElo "1717"]
[BlackElo "1797"]
[TimeControl "300"]
[EndTime "16:08:01 PDT"]
[Termination "stevochess11 won by resignation"]

1. d4 {[%clk 0:04:55.5]} 1... e6 {[%clk 0:04:56.8]} 2. Nf3 {[%clk 0:04:49.6]}
2... Nf6 {[%clk 0:04:56.2]} 3. e3 {[%clk 0:04:47.7]} 3... d5 {[%clk 0:04:55.6]}
4. Bd3 {[%clk 0:04:46.4]} 4... c5 {[%clk 0:04:54.7]} 5. O-O {[%clk 0:04:45.1]}
5... Nc6 {[%clk 0:04:54.1]} 6. b3 {[%clk 0:04:44.2]} 6... cxd4 {[%clk
0:04:53.6]} 7. exd4 {[%clk 0:04:43.3]} 7... Bd6 {[%clk 0:04:52.6]} 8. a3 {[%clk
0:04:41.2]} 8... O-O {[%clk 0:04:52]} 9. Bb2 {[%clk 0:04:39.8]} 9... Bd7 {[%clk
0:04:49.3]} 10. Ne5 {[%clk 0:04:36.9]} 10... Qc7 {[%clk 0:04:46]} 11. Qe2 {[%clk
0:04:32.5]} 11... Ne4 {[%clk 0:04:42.1]} 12. f3 {[%clk 0:04:26.3]} 12... Nxe5
{[%clk 0:04:35.2]} 13. fxe4 {[%clk 0:04:22.7]} 13... Nxd3 {[%clk 0:04:33]} 14.
Qxd3 {[%clk 0:04:18.9]} 14... dxe4 {[%clk 0:04:28.7]} 15. Qxe4 {[%clk
0:04:14.9]} 15... Bc6 {[%clk 0:04:26]} 16. Qh4 {[%clk 0:04:12.4]} 16... Be7
{[%clk 0:04:01.7]} 17. Qg4 {[%clk 0:04:01.5]} 17... f5 {[%clk 0:03:57.1]} 18.
Qh3 {[%clk 0:03:54.8]} 18... Bf6 {[%clk 0:03:54.6]} 19. c4 {[%clk 0:03:50.8]}
19... Be4 {[%clk 0:03:52.3]} 20. Nd2 {[%clk 0:03:48.8]} 20... Qd7 {[%clk
0:03:45.4]} 21. Nxe4 {[%clk 0:03:40.7]} 21... fxe4 {[%clk 0:03:43.6]} 22. Rad1
{[%clk 0:03:36.4]} 22... Rad8 {[%clk 0:03:32.9]} 23. Bc3 {[%clk 0:03:19.1]}
23... e5 {[%clk 0:03:28]} 24. Qxd7 {[%clk 0:03:11.9]} 24... Rxd7 {[%clk
0:03:25.6]} 25. dxe5 {[%clk 0:03:10.5]} 25... Rxd1 {[%clk 0:03:22.8]} 26. Rxd1
{[%clk 0:03:08.7]} 26... Bg5 {[%clk 0:03:12.8]} 27. Rd7 {[%clk 0:03:04.7]} 27...
e3 {[%clk 0:03:10.7]} 28. e6 {[%clk 0:02:57.9]} 28... e2 {[%clk 0:03:09]} 29.
Rxg7+ {[%clk 0:02:56]} 29... Kh8 {[%clk 0:03:04.8]} 30. Rxg5+ {[%clk 0:02:53.6]}
1-0

[Event "Live Chess"]
[Site "Chess.com"]
[Date "2024.06.02"]
[Round "-"]
[White "DoctorMantisTobogganMD"]
[Black "NeilDruggan73"]
[Result "1-0"]
[WhiteElo "2179"]
[BlackElo "1747"]
[TimeControl "300"]
[EndTime "16:08:08 PDT"]
[Termination "DoctorMantisTobogganMD won by checkmate"]

1. e4 {[%clk 0:04:59.2]} 1... d6 {[%clk 0:04:56]} 2. d4 {[%clk 0:04:57.6]} 2...
Nf6 {[%clk 0:04:54.5]} 3. Nc3 {[%clk 0:04:56.3]} 3... g6 {[%clk 0:04:54]} 4. Nf3
{[%clk 0:04:55.2]} 4... Bg7 {[%clk 0:04:53.6]} 5. h3 {[%clk 0:04:54.5]} 5... c6
{[%clk 0:04:50.9]} 6. a4 {[%clk 0:04:53]} 6... a5 {[%clk 0:04:48]} 7. Be3 {[%clk
0:04:51.6]} 7... Nbd7 {[%clk 0:04:45.8]} 8. e5 {[%clk 0:04:50.1]} 8... Nd5
{[%clk 0:04:43.2]} 9. Nxd5 {[%clk 0:04:47]} 9... cxd5 {[%clk 0:04:42.1]} 10.
exd6 {[%clk 0:04:46.1]} 10... O-O {[%clk 0:04:38.5]} 11. dxe7 {[%clk 0:04:43.5]}
11... Qxe7 {[%clk 0:04:37.1]} 12. Bd3 {[%clk 0:04:40.2]} 12... Qb4+ {[%clk
0:04:35.3]} 13. Qd2 {[%clk 0:04:36.3]} 13... Qxb2 {[%clk 0:04:25.4]} 14. O-O
{[%clk 0:04:34.9]} 14... Qb6 {[%clk 0:04:23.7]} 15. Rfb1 {[%clk 0:04:29.7]}
15... Qe6 {[%clk 0:04:16.1]} 16. Bh6 {[%clk 0:04:26.8]} 16... f5 {[%clk
0:03:56.3]} 17. Bxg7 {[%clk 0:04:23.3]} 17... Kxg7 {[%clk 0:03:54.2]} 18. Re1
{[%clk 0:04:22.5]} 18... Qf6 {[%clk 0:03:52]} 19. Ne5 {[%clk 0:04:19.4]} 19...
Nxe5 {[%clk 0:03:46.5]} 20. Rxe5 {[%clk 0:04:16.9]} 20... Bd7 {[%clk 0:03:36.4]}
21. Bb5 {[%clk 0:03:46.8]} 21... Bc6 {[%clk 0:03:30.5]} 22. Bxc6 {[%clk
0:03:44.6]} 22... bxc6 {[%clk 0:03:22.7]} 23. Rb1 {[%clk 0:03:42.2]} 23... Rfe8
{[%clk 0:03:12.3]} 24. Rb7+ {[%clk 0:03:33.1]} 24... Kg8 {[%clk 0:03:05.8]} 25.
f4 {[%clk 0:03:30.2]} 25... Rxe5 {[%clk 0:02:59.8]} 26. fxe5 {[%clk 0:03:27.4]}
26... Qf8 {[%clk 0:02:52.5]} 27. Qc3 {[%clk 0:03:14.3]} 27... Qc8 {[%clk
0:02:22.9]} 28. Rb6 {[%clk 0:02:58.5]} 28... Ra6 {[%clk 0:02:16.5]} 29. Rb1
{[%clk 0:02:45.5]} 29... Kf7 {[%clk 0:02:06.5]} 30. Qc5 {[%clk 0:02:43.3]} 30...
Qd8 {[%clk 0:01:57]} 31. Rb7+ {[%clk 0:02:39.8]} 31... Ke6 {[%clk 0:01:52.9]}
32. Rxh7 {[%clk 0:02:35.4]} 32... Rb6 {[%clk 0:01:44.1]} 33. Rg7 {[%clk
0:02:28.3]} 33... Rb1+ {[%clk 0:01:41]} 34. Kh2 {[%clk 0:02:25.3]} 34... f4
{[%clk 0:00:59.3]} 35. Qxc6+ {[%clk 0:02:19.4]} 35... Kf5 {[%clk 0:00:56.9]} 36.
Qxg6# {[%clk 0:02:18.5]} 1-0

[Event "Live Chess"]
[Site "Chess.com"]
[Date "2024.06.02"]
[Round "-"]
[White "KwikPhoenix"]
[Black "cymbalshift"]
[Result "1-0"]
[WhiteElo "2444"]
[BlackElo "1692"]
[TimeControl "300"]
[EndTime "16:08:39 PDT"]
[Termination "KwikPhoenix won on time"]

1. b3 {[%clk 0:04:56.5]} 1... Nf6 {[%clk 0:04:57.6]} 2. Bb2 {[%clk 0:04:56.4]}
2... d6 {[%clk 0:04:56.8]} 3. e3 {[%clk 0:04:55.7]} 3... g6 {[%clk 0:04:56]} 4.
d4 {[%clk 0:04:55.6]} 4... Bg7 {[%clk 0:04:54.7]} 5. Nf3 {[%clk 0:04:55.5]} 5...
O-O {[%clk 0:04:53.6]} 6. Bd3 {[%clk 0:04:55.4]} 6... Nbd7 {[%clk 0:04:52.2]} 7.
Nbd2 {[%clk 0:04:55]} 7... Re8 {[%clk 0:04:50.1]} 8. O-O {[%clk 0:04:54.6]} 8...
e5 {[%clk 0:04:49.1]} 9. dxe5 {[%clk 0:04:54.5]} 9... dxe5 {[%clk 0:04:48.1]}
10. e4 {[%clk 0:04:53.9]} 10... c6 {[%clk 0:04:43]} 11. Nc4 {[%clk 0:04:52.2]}
11... Qc7 {[%clk 0:04:41.5]} 12. a4 {[%clk 0:04:49.6]} 12... Nh5 {[%clk
0:04:29.8]} 13. Bc1 {[%clk 0:04:44]} 13... Nf4 {[%clk 0:04:24.2]} 14. g3 {[%clk
0:04:42.9]} 14... Ne6 {[%clk 0:04:18.1]} 15. Bb2 {[%clk 0:04:41.2]} 15... Nd4
{[%clk 0:03:59.5]} 16. Nxd4 {[%clk 0:04:33.4]} 16... exd4 {[%clk 0:03:58.2]} 17.
Re1 {[%clk 0:04:33.3]} 17... b5 {[%clk 0:03:56.4]} 18. axb5 {[%clk 0:04:32.3]}
18... cxb5 {[%clk 0:03:55.1]} 19. Na3 {[%clk 0:04:32.2]} 19... b4 {[%clk
0:03:34.1]} 20. Nc4 {[%clk 0:04:26]} 20... Bb7 {[%clk 0:03:23.8]} 21. Qd2 {[%clk
0:04:22.6]} 21... a5 {[%clk 0:03:20.1]} 22. f3 {[%clk 0:04:19.2]} 22... Nc5
{[%clk 0:02:35.9]} 23. Ra2 {[%clk 0:04:15.2]} 23... f5 {[%clk 0:02:14.3]} 24.
exf5 {[%clk 0:04:05.3]} 24... Bxf3 {[%clk 0:02:00.9]} 25. Rf1 {[%clk 0:04:00.6]}
25... Bg4 {[%clk 0:01:43.7]} 26. fxg6 {[%clk 0:03:54.9]} 26... Bh3 {[%clk
0:01:41.5]} 27. gxh7+ {[%clk 0:03:53.5]} 27... Kh8 {[%clk 0:01:39.8]} 28. Raa1
{[%clk 0:03:49]} 28... a4 {[%clk 0:01:22]} 29. Qxb4 {[%clk 0:03:41]} 29... Nxd3
{[%clk 0:01:05.7]} 30. cxd3 {[%clk 0:03:35.3]} 30... axb3 {[%clk 0:01:04.5]} 31.
Qxb3 {[%clk 0:03:12.8]} 31... Rab8 {[%clk 0:00:59]} 32. Qc2 {[%clk 0:03:08.2]}
32... Qc6 {[%clk 0:00:31.6]} 33. Rf7 {[%clk 0:02:55.1]} 33... Rb7 {[%clk
0:00:16.5]} 34. Rxb7 {[%clk 0:02:53.1]} 34... Qxb7 {[%clk 0:00:15]} 35. Nd6
{[%clk 0:02:52.8]} 35... Qe7 {[%clk 0:00:03.3]} 36. Nxe8 {[%clk 0:02:51.7]}
36... Qe3+ {[%clk 0:00:02.1]} 37. Qf2 {[%clk 0:02:50.1]} 37... Qxe8 {[%clk
0:00:00.9]} 38. Bxd4 {[%clk 0:02:48.6]} 1-0